Cogmind - Beta 15 @@@ ROGUE MODE // 2025.07.12 @ 16:18:05 Player: Rockstar Result: Destroyed by Piercing Trap Performance ------------- Evolutions (0) 0 Regions Visited (3) 600 Robots Destroyed (4) 20 Value Destroyed (144) 144 Prototype IDs (0) 0 Alien Tech Used (0) 0 Bonus (0) 0 TOTAL SCORE: 764 Bonus ------- None Cogmind --------- Core Integrity 0/250 Matter 300/300 Energy 248/250 System Corruption 0% Temperature Cool (0) Movement Rolling (90) Location -10/Subcaves Parts ------- > --- POWER (1) -------- Ion Engine > --- PROPULSION (2) --- Wheel Compact Wheel > --- UTILITY (2) ------ Medium Storage Unit Visual Processing Unit > --- WEAPON (2) ------- (None) > --- INVENTORY (10) --- Ion Engine Ion Engine Ion Engine Wheel Wheel Wheel Small Storage Unit Experimental Sensor Array Peak State ------------ > --- POWER ------------ Ion Engine > --- PROPULSION ------- Wheel Compact Wheel > --- UTILITY ---------- Medium Storage Unit Visual Processing Unit > --- WEAPON ----------- Medium Laser Medium Laser > --- INVENTORY -------- Light Ion Engine Wheel Small Storage Unit Small Storage Unit Experimental Sensor Array EM Pulse Gun Mining Laser [Rating: 9] Favorites ----------- Power Ion Engine Engine Ion Engine Propulsion Wheel Wheel Wheel Hover Unit Hover Unit Utility Visual Processing Unit Storage Medium Storage Unit Processor Visual Processing Unit Weapon Medium Laser Energy Gun Medium Laser Special Weapon Welding Torch Build | -11 -10 -10 -10 ------- Run | Yrd Mat Min Sub Slots Evolved . | . . . . Power . | . . . . Propulsion . | . . . . Utility . | . . . . Weapon . | . . . . Parts Attached 13 | 5 6 1 1 Power 2 | 1 . 1 . Engine 2 | 1 . 1 . Core . | . . . . Reactor . | . . . . Propulsion 4 | 2 2 . . Treads . | . . . . Leg . | . . . . Wheel 2 | 2 . . . Hover 2 | . 2 . . Flight . | . . . . Utility 4 | 1 3 . . Device . | . . . . Storage 3 | 1 2 . . Processor 1 | . 1 . . Hackware . | . . . . Protection . | . . . . Artifact . | . . . . Weapon 3 | 1 1 . 1 Energy Gun 2 | 1 1 . . Energy Cannon . | . . . . Ballistic Gun . | . . . . Ballistic Cannon . | . . . . Launcher . | . . . . Special Weapon 1 | . . . 1 Impact Weapon . | . . . . Slashing Weapon . | . . . . Piercing Weapon . | . . . . Special Melee Weapon . | . . . . Unidentified Prototypes . | . . . . Parts Lost 6 | . 3 . 3 Power 1 | . 1 . . Propulsion 2 | . 2 . . Utility . | . . . . Weapon 3 | . . . 3 Highest Loss Streak 3 | . 2 . 3 To Critical Strikes . | . . . . Average Backups 6 | 1 5 7 8 Power 1 | . 1 1 3 Propulsion 1 | . 1 1 1 Utility 1 | . 1 2 2 Weapon 1 | . 1 1 . Tool/Special . | . . . . Unused Backups 11 | . . 2 9 Power 4 | . . 1 3 Propulsion 3 | . . . 3 Utility 2 | . . . 2 Weapon 2 | . . 1 1 Tool/Special . | . . . . Average Slot Usage (%) 95 | . 83 100 97 Engine 13 | . 13 14 14 Wheel 24 | . 14 28 28 Hover 2 | . 10 . . Storage 14 | . 14 14 14 Processor 12 | . 9 14 14 Energy Gun 25 | . 21 28 24 Peak Build Rating 9 | 5 8 9 9 Average Rating 8 | 4 6 8 8 On Entrance 5 | . 5 7 9 Naked Turns . | . . . . Heaviest Build 19 | 12 19 19 19 Greatest Support 26 | 26 26 26 26 Greatest Overweight (x) 6 | . 6 . . Average Overweight (x) . | . . . . Largest Inventory Capacity 10 | 8 10 10 10 Average Capacity 9 | 7 8 10 10 Most Carried 10 | 3 7 10 10 Average Carried 7 | 1 5 8 9 Final Capacity 10 | 8 10 10 10 Final Carried 10 | 3 7 10 8 Class Distribution -------------------- 100% | Mutant Dominant Class ---------------- Mutant | -10/Materials Mutant | -10/Mines Mutant | -10/Subcaves Resources | -11 -10 -10 -10 ----------- Run | Yrd Mat Min Sub Matter Collected 345 | 187 134 24 . Remotely . | . . . . Salvage Created 169 | . 109 . 60 Parts 5 | . 4 . 1 Haulers Intercepted . | . . . . Recyclers Shooed . | . . . . Parts Field Recycled . | . . . . Retrieved Matter . | . . . . Parts Self-Destructed 7 | . . . 7 Prevented . | . . . . Kills | -11 -10 -10 -10 ------- Run | Yrd Mat Min Sub Combat Hostiles Destroyed 3 | . 2 . 1 Guns 3 | . 2 . 1 Classes Destroyed 2 | . 2 . . Watcher 1 | . 1 . . Grunt 3 | . 2 . 1 Best Kill Streak 2 | . 2 . 1 Combat Bots Only 2 | . 2 . 1 Max Kills in Single Turn 1 | . 1 . 1 Gunslinging . | . . . . Exploded . | . . . . Melee . | . . . . Uniques/NPCs Destroyed . | . . . . Combat | -11 -10 -10 -10 -------- Run | Yrd Mat Min Sub Hostile Shots Fired 55 | . 35 . 20 Missed 15 | . 8 . 7 Hits 40 | . 27 . 13 Projectile 40 | . 27 . 13 Critical Strikes 1 | . 1 . . Damage Taken 671 | . 351 . 320 Core 268 | . 128 . 140 Absorbed by Shields . | . . . . Core Remaining (%) 100 | 100 . . . Volleys Fired 19 | . 14 . 5 Largest 2 | . 2 . 1 Hottest 100 | . 100 . 50 Shots Fired 27 | . 22 . 5 Gun 27 | . 22 . 5 Cannon . | . . . . Launcher . | . . . . Special . | . . . . Kinetic . | . . . . Thermal 27 | . 22 . 5 Explosive . | . . . . Electromagnetic . | . . . . Robot Hit Streak 11 | . 11 . 3 Robot Miss Streak 4 | . 3 . 4 Penetration Max . | . . . . Secondary Targets 1 | . 1 . . Max Gunslinging Chain 1 | . 1 . . Shots Hit Robots 18 | . 15 . 3 Core Hits 9 | . 6 . 3 Critical Kills . | . . . . Critical Parts Destroyed . | . . . . Critical Strikes 4 | . 3 . 1 Burn 4 | . 3 . 1 Melee Attacks . | . . . . Impact . | . . . . Slashing . | . . . . Piercing . | . . . . Sneak Attacks . | . . . . Combat Hostiles . | . . . . Follow-up Attacks . | . . . . Damage Inflicted 224 | . 185 . 39 Guns 224 | . 185 . 39 Cannons . | . . . . Explosions . | . . . . Melee . | . . . . Ramming . | . . . . Kinetic . | . . . . Thermal 224 | . 185 . 39 Explosive . | . . . . Electromagnetic . | . . . . Impact . | . . . . Slashing . | . . . . Piercing . | . . . . Highest Corruption . | . . . . Average Corruption . | . . . . Corruption Purged . | . . . . Corruption Blocked . | . . . . Overload Shots . | . . . . Overflow Damage . | . . . . Projectiles . | . . . . Explosions . | . . . . Melee . | . . . . Knockbacks . | . . . . Impact . | . . . . Kinetic . | . . . . Secondary . | . . . . Self-Inflicted Damage . | . . . . Shots . | . . . . Rammed . | . . . . Targets Rammed . | . . . . Kicked . | . . . . Crushed . | . . . . Highest Temperature 458 | . 458 . . Average Temperature 211 | . 211 . . Received Heat Transfer 300 | . 210 . 90 Effects 4 | . 4 . . Shutdowns 1 | . 1 . . Interference 3 | . 3 . . Siege Activations . | . . . . Martial Activations . | . . . . Shielding Activations . | . . . . Robots Disrupted . | . . . . Combat Hostiles . | . . . . Robots Corrupted . | . . . . Combat Hostiles . | . . . . Parts Fried . | . . . . Impact Corruptions . | . . . . Robots Melted . | . . . . Combat Hostiles . | . . . . Parts Melted 4 | . 3 . 1 Heat Transferred 962 | . 777 . 185 Parts Sabotaged . | . . . . Parts Stolen . | . . . . Parts Stripped . | . . . . Power Chain Reactions . | . . . . Alert | -11 -10 -10 -10 ------- Run | Yrd Mat Min Sub Maximum Alert Level . | . . . . Low Security (%) 100 | 100 100 100 . Level 1 . | . . . . Level 2 . | . . . . Level 3 . | . . . . Level 4 . | . . . . Level 5 . | . . . . High Security . | . . . . Max Security . | . . . . Peak Influence 40 | . 40 . . Initial . | . . . . Average 2 | . 10 . . Influence Increases 102 | . 72 . 30 Destroy 0b10 Robot/C 60 | . 40 . 20 Destroy 0b10 Robot/NC 5 | . 5 . . Destroy Leader 22 | . 12 . 10 Partial Spotted 15 | . 15 . . Influence Decreases 92 | . 72 . 20 Time Decay 62 | . 52 . 10 Lost Part 30 | . 20 . 10 Squads Dispatched 1 | . 1 . . Investigation . | . . . . Extermination . | . . . . Reinforcement 1 | . 1 . . Assault . | . . . . Garrison . | . . . . Intercept . | . . . . Searches Triggered . | . . . . Construction Impeded . | . . . . Haulers Reinforced . | . . . . Active Scanning Responses . | . . . . Cargo Convoy Interrupts . | . . . . Stealth | -11 -10 -10 -10 --------- Run | Yrd Mat Min Sub Distress Signals . | . . . . Communications Jammed . | . . . . Distress Signals . | . . . . Times Spotted 10 | . 7 . 3 Peak Tracking Total 4 | . 4 . 3 Tactical Retreats . | . . . . Traps | -11 -10 -10 -10 ------- Run | Yrd Mat Min Sub Traps Triggered 1 | . . . 1 Indirectly . | . . . . Trap Hack Attempts . | . . . . Triggered . | . . . . Disarmed . | . . . . Reprogrammed . | . . . . Reused . | . . . . Traps Extracted . | . . . . Installed . | . . . . Triggered . | . . . . Most Traps Carried 3 | . . 3 2 Machines | -11 -10 -10 -10 ---------- Run | Yrd Mat Min Sub Machines Disabled . | . . . . Max in Single Turn . | . . . . Machines Repaired . | . . . . Machines Dismantled . | . . . . Machines Sabotaged . | . . . . Overloaded Fab Kills . | . . . . Hacking | -11 -10 -10 -10 --------- Run | Yrd Mat Min Sub Machines Accessed 1 | . 1 . . Terminals 1 | . 1 . . Fabricators . | . . . . Repair Stations . | . . . . Recycling Units . | . . . . Scanalyzers . | . . . . Garrison Access . | . . . . Total Hacks 2 | . 2 . . Successful . | . . . . Failed 2 | . 2 . . Catastrophic 1 | . 1 . . Database Lockouts . | . . . . Manual 2 | . 2 . . Terminals 2 | . 2 . . Fabricators . | . . . . Repair Stations . | . . . . Recycling Units . | . . . . Scanalyzers . | . . . . Garrison Access . | . . . . Terminal Hacks . | . . . . Fabricator Hacks . | . . . . Repair Station Hacks . | . . . . Recycling Unit Hacks . | . . . . Scanalyzer . | . . . . Garrison Access Hacks . | . . . . Unauthorized Hacks . | . . . . Terminals . | . . . . Fabricators . | . . . . Repair Stations . | . . . . Recycling Units . | . . . . Scanalyzers . | . . . . Garrison Access . | . . . . Data Cores Recovered . | . . . . Used . | . . . . Hacking Detections 1 | . 1 . . Full Trace Events . | . . . . Feedback Events . | . . . . Feedback Blocked . | . . . . Robot Schematics Acquired . | . . . . Robots Built . | . . . . Authchips . | . . . . Time . | . . . . Total Robot Build Rating . | . . . . Part Schematics Acquired . | . . . . Parts Built . | . . . . Authchips . | . . . . Time . | . . . . Total Part Build Rating . | . . . . Parts Repaired . | . . . . Time . | . . . . Parts Recycled . | . . . . Recycled Matter . | . . . . Retrieved Matter . | . . . . Retrieved Components . | . . . . Parts Scanalyzed . | . . . . Part Schematics Acquired . | . . . . Parts Damaged . | . . . . Bothacking | -11 -10 -10 -10 ------------ Run | Yrd Mat Min Sub Used RIF Installer . | . . . . Robots Hacked . | . . . . Non-combat . | . . . . Combat . | . . . . Robot Hacks Applied . | . . . . Relay Couplers Released . | . . . . Fabnet Peak Effective % . | . . . . Robots Rewired . | . . . . Allies Hacked . | . . . . Hacks Repelled . | . . . . Allies | -11 -10 -10 -10 -------- Run | Yrd Mat Min Sub Total Allies . | . . . . Largest Group . | . . . . Highest-Rated Group . | . . . . Highest-Rated Ally . | . . . . Total Orders . | . . . . Ally Attacks . | . . . . Total Damage . | . . . . Kills . | . . . . Allies Corrupted . | . . . . Allies Melted . | . . . . Intel | -11 -10 -10 -10 ------- Run | Yrd Mat Min Sub Active Infowar (turns) 650 | . 102 387 161 Optics 650 | . 102 387 161 Robot Analysis Total . | . . . . Derelict Logs Recovered 1 | . . 1 . Drone Launches . | . . . . Drone Recoveries . | . . . . Exploration | -11 -10 -10 -10 ------------- Run | Yrd Mat Min Sub Turns Passed 757 | 47 162 387 161 Spaces Moved 673 | 42 87 381 163 Core 2 | 1 1 . . Treads . | . . . . Legs . | . . . . Wheels 645 | 41 60 381 163 Hover 26 | . 26 . . Flight . | . . . . Fastest Speed 50 | 50 56 90 90 Average Speed 89 | 87 85 90 90 Slowest Speed 350 | 90 350 90 90 Overloaded Moves . | . . . . Propulsion Burnouts . | . . . . Robots Hopped . | . . . . Potential Cave-ins . | . . . . Cave-ins Triggered . | . . . . Exploration Rate (%) 29 | 3 16 85 14 Regions Visited 3 Branch Regions 2 Pre-discovered Areas 1 | . . . 1 Known Exits Taken 1 | . . 1 . Unknown Exits Taken 2 | 1 1 . . Scrap Searched 1 | . . 1 . Spaces Dug . | . . . . Terrain Destroyed . | . . . . Melee . | . . . . Projectile . | . . . . AOE . | . . . . Terrain Rammed . | . . . . Walls Destroyed . | . . . . Machines Disabled . | . . . . Actions | -11 -10 -10 -10 --------- Run | Yrd Mat Min Sub Total 802 | 49 153 426 174 Wait 61 | . 28 33 . Move 670 | 41 86 380 163 Hop . | . . . . Pick Up 19 | 3 6 8 2 Fast Attach 11 | 5 6 . . Attach 4 | . 2 1 1 Detach 4 | . 4 . . Swap 2 | . 2 . . Drop 12 | . 5 4 3 Fire 19 | . 14 . 5 Melee . | . . . . Ram . | . . . . Kick . | . . . . Crush . | . . . . Escape Stasis . | . . . . Rewire . | . . . . Trap . | . . . . Miscellaneous . | . . . . Route ------- -11/Scrapyard -10/Materials -10/Mines (discovered 3 exits: [*Mat x2] / *Sub) -10/Subcaves History --------- Turn | Location | Event 21 | -11/Scrapyard | Discovered new exit (range 16) 48 | -11/Scrapyard | Entered Materials 193 | -10/Materials | Discovered new exit (range 12) 210 | -10/Materials | Core integrity fell below 50% 210 | -10/Materials | Entered Mines 291 | -10/Mines | Found a damaged Exp. Sensor Array with a note attached 293 | -10/Mines | Found Prototype Device 307 | -10/Mines | Build established: Mutant 312 | -10/Mines | Discovered new exit (range 7) 323 | -10/Mines | Discovered new exit (range 7) 346 | -10/Mines | Found a hidden stash of uninstalled traps 495 | -10/Mines | Found DCF Scrap (13 items) 534 | -10/Mines | Identified exit to Subcaves 597 | -10/Mines | Entered Subcaves 598 | -10/Subcaves | Approached by a straggling Scientist 689 | -10/Subcaves | Ambushed by Subdwellers from Twisted Machinery 706 | -10/Subcaves | Learned location of Zion (-6) 706 | -10/Subcaves | Met a Zionite searching for "candidates" 726 | -10/Subcaves | Core integrity fell below 20% 758 | -10/Subcaves | Destroyed by Piercing Trap Last Messages --------------- UF-K61(z): "Hey you! It's really dangerous down here, I feel that you could die at any moment. For your health and safety might I suggest a trip to Zion?" World map updated: -6/Zion. Dropped Heavy Explosive Trap. Tech Extrapolator violently self-destructs. Dropped EM Pulse Gun. Dropped Heavy Explosive Trap. Acquired Wheel. Med. Laser destroyed. Acquired Wheel. Welding Torch destroyed. G-47 Trooper suffers critical hit (Burn). Lgt. Nuclear Core melted. G-47 Trooper destroyed. Triggered Piercing Trap. Spikes shoot up from the floor. Critical hit (Impale). Med. Laser destroyed. Critical hit (Impale). Map ----- +----------------------------------------------------+ | ??????????????????# ##??????# #? | | ??????????????????## ## #???????##"#? | | ???????????#######?# #### #?# #????????###? | | ???????????# # ## ##?# ##??##???????????? | | ???????????# ### #????????????????? | | ???????????# #???????????????? | | ???????????# #??????????????? | | ???????????#### ######### #?????????????? | | ??????????????## #??????# #????????????? | | ???????????????## ##?????? " "???????????? | | ????????????????# #?????? """ ??????????? | | ????????????????# ##?????? ## """" ###?????????? | | ???????????????## ###???? #?#""""?????????????? | | ??????????????## ##???? #??##???????????????? | | ??????????????# #???? ?#??????????????????? | | ?????????????## #???? ##?????????????????? | | ?????????????# ###????? #?????#???????????? | | ?????????????# ######?## ???? ###?????????? | | ?????????????## ## ## ##### ##????????? | | ??????????????## ??????? | | ???????????????## ???????? | | ????????????????## # # ^ ### ???????? | | ?????????????????######## % ##??????????????????? | | ????????????????????????## ###????????????????? | | ??????????????????????#### ##???????????????? | | ??????????????????????# @ #???????????????? | | ??????????????????????# #???????????????? | | ????????????????????? #???????????????? | | ???????????????????# %[ ^^ ##???????????????? | | ??????????????????# #### ##????????????????? | | ??????????????????#????# ##?????????????????? | | ???????????????????????# ####??????????????????? | | ???????????????????????# ##?????????????????????? | | ???????????????????????# ??????????????????????? | | ??????????????????????? ??????????????????????? | | ??????????????????????? ??????????????????????? | | ???????????????????????# ##??????????????????????? | | ???????????????????????##????????????????????????? | | ?????????????????????????????????????????????????? | | ?????????????????????????????????????????????????? | | ?????????????????????????????????????????????????? | | ?????????????????????????????????????????????????? | | ?????????????????????????????????????????????????? | | ?????????????????????????????????????????????????? | | ?????????????????????????????????????????????????? | | ?????????????????????????????????????????????????? | | ?????????????????????????????????????????????????? | | ?????????????????????????????????????????????????? | | ?????????????????????????????????????????????????? | | ?????????????????????????????????????????????????? | +----------------------------------------------------+ Best States ------------- Heat Dissipation 25 Energy Generation 10 Energy Capacity 250 Matter Stores 300 Matter Capacity 300 Sight Range 18 Terrain Scan Density 10 Evasion (%) 53 Item Schematics ----------------- None Robot Schematics ------------------ None Fabricated ------------ Nothing Repaired ---------- Nothing Alien Tech Used ----------------- None Achievements -------------- None Challenges ------------ None Game ------ Seed ConceptHugeSplitter Manual? 0 Play Time 00:14:18 Cumulative 62.7 hours Start 2025.07.12 @ 16:05:19 End 2025.07.12 @ 16:18:05 Sessions 1 Manual Loads 0 Difficulty Rogue Special Mode None Game No. 51 Rogue 48 Adventurer 1 Explorer 2 Win Type - Total 0 Types 0/0/0/0/0/0/0/0/0/0 Lore% 22 Gallery% 39 Achievement% 30 Wizard Run 0 Options --------- Layout 0 ASCII 0 Keyboard 0 Movement Mouse Keybinds 0 Fullscreen 2 Font 24/Smallcaps Map View 76x50 Zoom Use 0% Tactical HUD 0 Map Filters NONE Filters NONE Steam 1 RUN: e8c8dc04-277c-4798-9ad0-8a6afd954fc4